[Event "*** Titled Tuesday Blitz"]
[Site "Chess.com"]
[Date "2020.01.07"]
[Round "6"]
[White "Ginzburg_Yakov"]
[Black "promen1999"]
[Result "0-1"]
[WhiteElo "2575"]
[BlackElo "2794"]
[TimeControl "180+2"]
[EndTime "14:21:59 PST"]
[Termination "promen1999 won on time"]

1. e4 {[%clk 0:03:01.7]} 1... c5 {[%clk 0:03:00.6]} 2. Nf3 {[%clk 0:02:59.8]}
2... e6 {[%clk 0:03:01.4]} 3. d4 {[%clk 0:02:57.6]} 3... cxd4 {[%clk 0:03:02.1]}
4. Nxd4 {[%clk 0:02:59.4]} 4... a6 {[%clk 0:03:03.7]} 5. c4 {[%clk 0:02:57.8]}
5... Qc7 {[%clk 0:03:03.7]} 6. Nc3 {[%clk 0:02:57.8]} 6... Nf6 {[%clk
0:03:05.3]} 7. a3 {[%clk 0:02:56.4]} 7... Nc6 {[%clk 0:03:02.9]} 8. Nc2 {[%clk
0:02:48.6]} 8... b6 {[%clk 0:02:54.1]} 9. Be2 {[%clk 0:02:40.9]} 9... Bb7 {[%clk
0:02:55.1]} 10. O-O {[%clk 0:02:41.8]} 10... h5 {[%clk 0:02:48.1]} 11. h3 {[%clk
0:02:20.9]} 11... Ne5 {[%clk 0:02:37.1]} 12. Ne3 {[%clk 0:02:04.6]} 12... g5
{[%clk 0:02:36.9]} 13. b4 {[%clk 0:01:47.6]} 13... g4 {[%clk 0:02:36.5]} 14. h4
{[%clk 0:01:48.5]} 14... Ng6 {[%clk 0:02:32.3]} 15. Bb2 {[%clk 0:01:41.9]} 15...
Bg7 {[%clk 0:02:16.3]} 16. Ncd5 {[%clk 0:01:26]} 16... Qd8 {[%clk 0:01:35.7]}
17. f4 {[%clk 0:00:35.2]} 17... Nxd5 {[%clk 0:01:28]} 18. Nxd5 {[%clk 0:00:36]}
18... Bxb2 {[%clk 0:01:27.4]} 19. f5 {[%clk 0:00:34.6]} 19... Qxh4 {[%clk
0:01:22.4]} 20. fxg6 {[%clk 0:00:32]} 20... g3 {[%clk 0:01:20]} 21. Nc7+ {[%clk
0:00:11.1]} 21... Kd8 {[%clk 0:01:20.4]} 22. Nxe6+ {[%clk 0:00:02.1]} 22... fxe6
{[%clk 0:01:20.4]} 0-1

[Event "*** Titled Tuesday Blitz"]
[Site "Chess.com"]
[Date "2020.01.07"]
[Round "6"]
[White "DrRiebert"]
[Black "secretsuperstar7"]
[Result "1-0"]
[WhiteElo "2375"]
[BlackElo "2217"]
[TimeControl "180+2"]
[EndTime "14:22:09 PST"]
[Termination "DrRiebert won by resignation"]

1. e4 {[%clk 0:03:01.9]} 1... c5 {[%clk 0:02:59.6]} 2. Nf3 {[%clk 0:03:02.8]}
2... d6 {[%clk 0:02:59.2]} 3. d4 {[%clk 0:03:04.3]} 3... cxd4 {[%clk 0:02:59.2]}
4. Nxd4 {[%clk 0:03:06.2]} 4... Nf6 {[%clk 0:02:58.9]} 5. Nc3 {[%clk 0:03:07.5]}
5... a6 {[%clk 0:02:59.9]} 6. Nb3 {[%clk 0:03:05.4]} 6... e6 {[%clk 0:02:57]} 7.
g4 {[%clk 0:03:02.2]} 7... Nc6 {[%clk 0:02:41.7]} 8. Bg2 {[%clk 0:02:57.3]} 8...
Be7 {[%clk 0:02:36.5]} 9. Be3 {[%clk 0:02:46.9]} 9... Qc7 {[%clk 0:02:34.1]} 10.
g5 {[%clk 0:02:30.4]} 10... b5 {[%clk 0:02:36]} 11. a3 {[%clk 0:02:29.8]} 11...
Bb7 {[%clk 0:02:31.5]} 12. gxf6 {[%clk 0:02:30.5]} 12... gxf6 {[%clk 0:02:26.3]}
13. f4 {[%clk 0:02:26.8]} 13... f5 {[%clk 0:02:21.3]} 14. exf5 {[%clk 0:02:26]}
14... Bh4+ {[%clk 0:02:21.5]} 15. Kf1 {[%clk 0:02:25.3]} 15... Rg8 {[%clk
0:02:18.1]} 16. Rg1 {[%clk 0:02:17.3]} 16... O-O-O {[%clk 0:02:08.4]} 17. Qh5
{[%clk 0:02:14]} 17... Bf6 {[%clk 0:02:07.5]} 18. Rd1 {[%clk 0:01:51]} 18... d5
{[%clk 0:01:50.7]} 19. Ne2 {[%clk 0:01:20.9]} 19... Bxb2 {[%clk 0:01:42]} 20.
Ned4 {[%clk 0:01:19.4]} 20... Nxd4 {[%clk 0:01:41]} 21. Nxd4 {[%clk 0:01:18.8]}
21... Bxd4 {[%clk 0:01:39.5]} 22. Rxd4 {[%clk 0:01:16.2]} 22... Qxc2 {[%clk
0:01:38.8]} 23. Qxf7 {[%clk 0:01:08.1]} 23... exf5 {[%clk 0:01:34.3]} 24. Rd2
{[%clk 0:00:52.6]} 24... Qc4+ {[%clk 0:01:31.6]} 25. Kf2 {[%clk 0:00:47.6]}
25... Rgf8 {[%clk 0:01:31.1]} 26. Qe6+ {[%clk 0:00:47.8]} 26... Kb8 {[%clk
0:01:30.3]} 27. Qe5+ {[%clk 0:00:47.2]} 27... Ka8 {[%clk 0:01:29.8]} 28. Qd4
{[%clk 0:00:44.7]} 28... Qxd4 {[%clk 0:01:30.1]} 29. Bxd4 {[%clk 0:00:46.6]}
29... Rfe8 {[%clk 0:01:30.4]} 30. Be5 {[%clk 0:00:47.5]} 30... Rc8 {[%clk
0:01:29.8]} 31. Bf3 {[%clk 0:00:39.1]} 31... Red8 {[%clk 0:01:26]} 32. Rg7
{[%clk 0:00:39.5]} 32... a5 {[%clk 0:01:18]} 33. Rxh7 {[%clk 0:00:37.9]} 1-0

[Event "*** Titled Tuesday Blitz"]
[Site "Chess.com"]
[Date "2020.01.07"]
[Round "6"]
[White "tteshan"]
[Black "SCIM"]
[Result "0-1"]
[WhiteElo "2280"]
[BlackElo "2465"]
[TimeControl "180+2"]
[EndTime "14:22:12 PST"]
[Termination "SCIM won by resignation"]

1. d4 {[%clk 0:03:01.9]} 1... Nf6 {[%clk 0:02:58.8]} 2. c4 {[%clk 0:03:01]} 2...
g6 {[%clk 0:02:58.1]} 3. Nc3 {[%clk 0:03:01.8]} 3... d5 {[%clk 0:02:58.8]} 4.
cxd5 {[%clk 0:03:02.1]} 4... Nxd5 {[%clk 0:02:59]} 5. e4 {[%clk 0:03:03.5]} 5...
Nxc3 {[%clk 0:02:59.9]} 6. bxc3 {[%clk 0:03:05.3]} 6... Bg7 {[%clk 0:03:00.9]}
7. Be3 {[%clk 0:03:06.4]} 7... c5 {[%clk 0:03:00.7]} 8. Bc4 {[%clk 0:03:05.5]}
8... Qa5 {[%clk 0:02:58]} 9. Qd2 {[%clk 0:02:56.9]} 9... O-O {[%clk 0:02:42.8]}
10. Ne2 {[%clk 0:02:56.6]} 10... cxd4 {[%clk 0:02:23.5]} 11. cxd4 {[%clk
0:02:55.6]} 11... Qxd2+ {[%clk 0:02:25.4]} 12. Bxd2 {[%clk 0:02:55.7]} 12... Nc6
{[%clk 0:02:22]} 13. Bc3 {[%clk 0:01:50.3]} 13... Rd8 {[%clk 0:02:06.3]} 14. Rd1
{[%clk 0:01:40.6]} 14... Bd7 {[%clk 0:01:57]} 15. f3 {[%clk 0:01:37.7]} 15...
Rac8 {[%clk 0:01:56.8]} 16. Bb3 {[%clk 0:01:32.3]} 16... b5 {[%clk 0:01:51.8]}
17. Kf2 {[%clk 0:01:32]} 17... b4 {[%clk 0:01:42.4]} 18. Bb2 {[%clk 0:01:31.5]}
18... Na5 {[%clk 0:01:42.1]} 19. Rc1 {[%clk 0:01:24.1]} 19... Bb5 {[%clk
0:01:41.1]} 20. Rxc8 {[%clk 0:00:54.1]} 20... Rxc8 {[%clk 0:01:43]} 21. Rc1
{[%clk 0:00:55.2]} 21... Rxc1 {[%clk 0:01:26.4]} 22. Nxc1 {[%clk 0:00:55.1]}
22... Kf8 {[%clk 0:01:20.9]} 23. Ke3 {[%clk 0:00:52.9]} 23... Nc4+ {[%clk
0:01:16.8]} 24. Bxc4 {[%clk 0:00:52.8]} 24... Bxc4 {[%clk 0:01:18.7]} 25. Nb3
{[%clk 0:00:51.3]} 25... Ke8 {[%clk 0:01:09]} 26. Bc1 {[%clk 0:00:51.6]} 26...
e5 {[%clk 0:01:02.9]} 27. d5 {[%clk 0:00:46]} 27... Bxb3 {[%clk 0:01:01]} 28.
axb3 {[%clk 0:00:46.7]} 28... Bh6+ {[%clk 0:01:01.4]} 0-1

[Event "*** Titled Tuesday Blitz"]
[Site "Chess.com"]
[Date "2020.01.07"]
[Round "6"]
[White "OparinGrigoriy"]
[Black "enriquetejedor"]
[Result "1-0"]
[WhiteElo "3030"]
[BlackElo "2484"]
[TimeControl "180+2"]
[EndTime "14:22:22 PST"]
[Termination "OparinGrigoriy won by checkmate"]

1. d4 {[%clk 0:03:01.9]} 1... Nf6 {[%clk 0:02:57.6]} 2. c4 {[%clk 0:03:03.8]}
2... c5 {[%clk 0:02:55.4]} 3. Nf3 {[%clk 0:03:05.7]} 3... cxd4 {[%clk
0:02:50.6]} 4. Nxd4 {[%clk 0:03:07.6]} 4... d5 {[%clk 0:02:49.8]} 5. cxd5 {[%clk
0:03:08.2]} 5... Nxd5 {[%clk 0:02:47]} 6. e4 {[%clk 0:03:07.7]} 6... Nb4 {[%clk
0:02:47.2]} 7. Be3 {[%clk 0:03:08.5]} 7... N8c6 {[%clk 0:02:38.4]} 8. a3 {[%clk
0:03:06.8]} 8... Nxd4 {[%clk 0:02:31.2]} 9. axb4 {[%clk 0:03:08]} 9... e5 {[%clk
0:02:29.3]} 10. Bxd4 {[%clk 0:03:03.9]} 10... exd4 {[%clk 0:02:25.3]} 11. Bb5+
{[%clk 0:03:00.7]} 11... Bd7 {[%clk 0:02:24.8]} 12. Qa4 {[%clk 0:03:02.2]} 12...
Bxb5 {[%clk 0:02:21.6]} 13. Qxb5+ {[%clk 0:03:03.3]} 13... Qd7 {[%clk
0:02:23.5]} 14. Na3 {[%clk 0:02:56.2]} 14... Qxb5 {[%clk 0:01:57.2]} 15. Nxb5
{[%clk 0:02:58.1]} 15... Bxb4+ {[%clk 0:01:58.7]} 16. Ke2 {[%clk 0:02:59.5]}
16... d3+ {[%clk 0:01:53.7]} 17. Kxd3 {[%clk 0:02:59.1]} 17... O-O-O+ {[%clk
0:01:53.8]} 18. Kc4 {[%clk 0:02:57.6]} 18... a5 {[%clk 0:01:54.4]} 19. Rhd1
{[%clk 0:02:55.6]} 19... b6 {[%clk 0:01:23.7]} 20. Kb3 {[%clk 0:02:25.1]} 20...
Bc5 {[%clk 0:01:17.2]} 21. f3 {[%clk 0:02:25.7]} 21... Kb7 {[%clk 0:01:08.4]}
22. Nc3 {[%clk 0:02:26.8]} 22... Kc6 {[%clk 0:00:57.4]} 23. Rac1 {[%clk
0:02:27.9]} 23... Kb7 {[%clk 0:00:47.6]} 24. Ka4 {[%clk 0:02:13.2]} 24... Kc6
{[%clk 0:00:45.3]} 25. Nd5 {[%clk 0:02:10]} 25... Rd6 {[%clk 0:00:18.7]} 26. g4
{[%clk 0:02:04.2]} 26... h5 {[%clk 0:00:18.9]} 27. g5 {[%clk 0:02:05.1]} 27...
b5+ {[%clk 0:00:16.4]} 28. Kb3 {[%clk 0:02:06]} 28... a4+ {[%clk 0:00:14.8]} 29.
Ka2 {[%clk 0:02:07.3]} 29... b4 {[%clk 0:00:06.9]} 30. Nxb4+ {[%clk 0:02:08]}
30... Kb5 {[%clk 0:00:07.7]} 31. Nd5 {[%clk 0:02:08]} 31... Rb8 {[%clk
0:00:06.1]} 32. Rd3 {[%clk 0:02:07.4]} 32... Ba7 {[%clk 0:00:04.2]} 33. b3
{[%clk 0:02:07]} 33... Ka5 {[%clk 0:00:03.4]} 34. bxa4 {[%clk 0:02:05.8]} 34...
f6 {[%clk 0:00:04.6]} 35. gxf6 {[%clk 0:02:02.9]} 35... gxf6 {[%clk 0:00:06.5]}
36. Rb3 {[%clk 0:02:04.4]} 36... Rg8 {[%clk 0:00:03.3]} 37. Rb5+ {[%clk
0:02:02.2]} 37... Ka6 {[%clk 0:00:02.8]} 38. Nb4# {[%clk 0:02:03.4]} 1-0

[Event "*** Titled Tuesday Blitz"]
[Site "Chess.com"]
[Date "2020.01.07"]
[Round "6"]
[White "ChessBitl"]
[Black "Teidi96"]
[Result "1-0"]
[WhiteElo "2369"]
[BlackElo "2171"]
[TimeControl "180+2"]
[EndTime "14:22:25 PST"]
[Termination "ChessBitl won by resignation"]

1. e4 {[%clk 0:03:00.3]} 1... c5 {[%clk 0:03:00.3]} 2. Nf3 {[%clk 0:03:00.9]}
2... e6 {[%clk 0:02:55.9]} 3. c4 {[%clk 0:03:01.6]} 3... Nc6 {[%clk 0:02:54.1]}
4. Nc3 {[%clk 0:03:02.9]} 4... d6 {[%clk 0:02:40.4]} 5. d4 {[%clk 0:03:03.2]}
5... cxd4 {[%clk 0:02:40.7]} 6. Nxd4 {[%clk 0:03:04.7]} 6... a6 {[%clk
0:02:40.6]} 7. Be3 {[%clk 0:03:05]} 7... Nf6 {[%clk 0:02:41.3]} 8. f3 {[%clk
0:03:06.1]} 8... Qc7 {[%clk 0:02:42.4]} 9. Qd2 {[%clk 0:03:06.8]} 9... Be7
{[%clk 0:02:41.1]} 10. Rc1 {[%clk 0:03:08.1]} 10... Nb8 {[%clk 0:02:37.8]} 11.
Be2 {[%clk 0:03:06.4]} 11... Nbd7 {[%clk 0:02:38.3]} 12. O-O {[%clk 0:03:06.8]}
12... b6 {[%clk 0:02:39.6]} 13. Rfd1 {[%clk 0:03:07]} 13... Bb7 {[%clk
0:02:39.7]} 14. b4 {[%clk 0:03:07.8]} 14... O-O {[%clk 0:02:40.1]} 15. a3 {[%clk
0:03:08.5]} 15... Rac8 {[%clk 0:02:39.6]} 16. Nb3 {[%clk 0:03:05.2]} 16... Qb8
{[%clk 0:02:30.5]} 17. Bf4 {[%clk 0:02:56]} 17... Ne5 {[%clk 0:02:24.7]} 18. Na4
{[%clk 0:02:52.6]} 18... Bc6 {[%clk 0:02:16]} 19. b5 {[%clk 0:02:49.2]} 19...
axb5 {[%clk 0:02:17.2]} 20. cxb5 {[%clk 0:02:50.4]} 20... Ba8 {[%clk 0:02:18.4]}
21. Nd4 {[%clk 0:02:41.2]} 21... Qa7 {[%clk 0:02:04.2]} 22. Nc3 {[%clk
0:02:30.4]} 22... Nc4 {[%clk 0:01:55.7]} 23. Qa2 {[%clk 0:02:23.2]} 23... Qxa3
{[%clk 0:01:41.7]} 24. Bxc4 {[%clk 0:02:22.3]} 24... Qxa2 {[%clk 0:01:40.7]} 25.
Bxa2 {[%clk 0:02:13]} 25... e5 {[%clk 0:01:21.7]} 26. Nf5 {[%clk 0:02:12.8]}
26... Rfe8 {[%clk 0:01:22.8]} 27. Be3 {[%clk 0:02:09.5]} 27... Rb8 {[%clk
0:00:50.5]} 28. Nxe7+ {[%clk 0:02:07.1]} 28... Rxe7 {[%clk 0:00:51.1]} 29. Nd5
{[%clk 0:02:00.6]} 29... Nxd5 {[%clk 0:00:51.2]} 30. Bxd5 {[%clk 0:02:01.5]}
30... Bxd5 {[%clk 0:00:52.2]} 31. exd5 {[%clk 0:02:00.3]} 31... Ra7 {[%clk
0:00:44.1]} 32. Rc6 {[%clk 0:01:59.9]} 32... Ra5 {[%clk 0:00:44.7]} 33. Rb1
{[%clk 0:01:54.6]} 33... Kf8 {[%clk 0:00:44.8]} 34. Rxb6 {[%clk 0:01:54.6]}
34... Rd8 {[%clk 0:00:43]} 35. Rc1 {[%clk 0:01:46.3]} 35... Ra2 {[%clk 0:00:42]}
36. Rbc6 {[%clk 0:01:43]} 36... Rb2 {[%clk 0:00:39]} 37. b6 {[%clk 0:01:42.8]}
37... Ra8 {[%clk 0:00:38.5]} 38. Rc8+ {[%clk 0:01:42.7]} 38... Rxc8 {[%clk
0:00:38.4]} 39. Rxc8+ {[%clk 0:01:44.2]} 39... Ke7 {[%clk 0:00:40.2]} 40. Rc7+
{[%clk 0:01:43.6]} 40... Kf6 {[%clk 0:00:39]} 41. b7 {[%clk 0:01:44.3]} 1-0

[Event "*** Titled Tuesday Blitz"]
[Site "Chess.com"]
[Date "2020.01.07"]
[Round "6"]
[White "TheBigBoss04"]
[Black "ValeriyGrinev"]
[Result "1-0"]
[WhiteElo "2731"]
[BlackElo "2551"]
[TimeControl "180+2"]
[EndTime "14:22:48 PST"]
[Termination "TheBigBoss04 won by resignation"]

1. b3 {[%clk 0:03:01.9]} 1... e5 {[%clk 0:03:00.3]} 2. Bb2 {[%clk 0:03:03.8]}
2... Nc6 {[%clk 0:03:01.4]} 3. e3 {[%clk 0:03:05.1]} 3... Nf6 {[%clk 0:03:02.1]}
4. c4 {[%clk 0:03:05.3]} 4... d5 {[%clk 0:03:01.6]} 5. cxd5 {[%clk 0:03:06]}
5... Nxd5 {[%clk 0:03:03.5]} 6. Bb5 {[%clk 0:03:05.8]} 6... Bd6 {[%clk
0:02:52.8]} 7. Nf3 {[%clk 0:03:06.6]} 7... Qf6 {[%clk 0:02:53.2]} 8. d4 {[%clk
0:03:05.1]} 8... exd4 {[%clk 0:02:38.8]} 9. Nxd4 {[%clk 0:03:04.5]} 9... Ne7
{[%clk 0:02:37]} 10. Nd2 {[%clk 0:02:39.4]} 10... Bd7 {[%clk 0:02:24.6]} 11. O-O
{[%clk 0:02:20.8]} 11... Qg6 {[%clk 0:01:47.5]} 12. Nc4 {[%clk 0:02:14.4]} 12...
O-O {[%clk 0:01:35.6]} 13. Nxd6 {[%clk 0:02:12.9]} 13... Qxd6 {[%clk 0:01:36.5]}
14. Nxc6 {[%clk 0:02:06.3]} 14... Bxc6 {[%clk 0:01:35.8]} 15. Qxd6 {[%clk
0:02:05.6]} 15... cxd6 {[%clk 0:01:37.7]} 16. Bd3 {[%clk 0:02:04.7]} 16... Nd5
{[%clk 0:01:35.2]} 17. Rac1 {[%clk 0:02:04.2]} 17... Nb4 {[%clk 0:01:32.3]} 18.
Bb1 {[%clk 0:02:03.9]} 18... Bb5 {[%clk 0:01:23.2]} 19. Rfd1 {[%clk 0:02:04.7]}
19... Rfd8 {[%clk 0:01:19.9]} 20. a3 {[%clk 0:01:54.5]} 20... Nc6 {[%clk
0:01:21.3]} 21. a4 {[%clk 0:01:55]} 21... Ba6 {[%clk 0:01:22]} 22. Be4 {[%clk
0:01:50.9]} 22... Rac8 {[%clk 0:00:56.6]} 23. h4 {[%clk 0:01:51.6]} 23... Nb4
{[%clk 0:00:50.5]} 24. Ba3 {[%clk 0:01:03]} 24... Rxc1 {[%clk 0:00:49.2]} 25.
Rxc1 {[%clk 0:01:03.4]} 25... Nd3 {[%clk 0:00:50.3]} 26. Rd1 {[%clk 0:01:00.8]}
26... Ne5 {[%clk 0:00:39]} 27. Rxd6 {[%clk 0:01:01.3]} 27... Rc8 {[%clk
0:00:34.6]} 28. Bb2 {[%clk 0:00:54.8]} 28... f6 {[%clk 0:00:35.5]} 29. Bxe5
{[%clk 0:00:53.9]} 29... fxe5 {[%clk 0:00:37.4]} 30. Re6 {[%clk 0:00:53.2]}
30... Rc3 {[%clk 0:00:30.2]} 31. Rxe5 {[%clk 0:00:53.6]} 31... Kf8 {[%clk
0:00:29.7]} 32. Bxh7 {[%clk 0:00:51.4]} 32... Rxb3 {[%clk 0:00:30.4]} 33. Bg6
{[%clk 0:00:52.3]} 1-0

[Event "*** Titled Tuesday Blitz"]
[Site "Chess.com"]
[Date "2020.01.07"]
[Round "6"]
[White "otrov-11"]
[Black "enzovsky"]
[Result "1-0"]
[WhiteElo "2433"]
[BlackElo "2256"]
[TimeControl "180+2"]
[EndTime "14:22:57 PST"]
[Termination "otrov-11 won by resignation"]

1. d4 {[%clk 0:03:01.9]} 1... Nf6 {[%clk 0:03:00.8]} 2. g3 {[%clk 0:03:02.7]}
2... g6 {[%clk 0:03:01.9]} 3. Bg2 {[%clk 0:03:03.5]} 3... d5 {[%clk 0:03:03]} 4.
c4 {[%clk 0:03:03.4]} 4... c6 {[%clk 0:03:04.2]} 5. Nf3 {[%clk 0:03:04.3]} 5...
Bg7 {[%clk 0:03:05]} 6. O-O {[%clk 0:03:05.1]} 6... O-O {[%clk 0:03:06.2]} 7.
Nbd2 {[%clk 0:03:05.2]} 7... Ne4 {[%clk 0:03:05.4]} 8. e3 {[%clk 0:03:03.2]}
8... Bf5 {[%clk 0:02:24.1]} 9. Nh4 {[%clk 0:02:53.7]} 9... Nxd2 {[%clk
0:02:18.5]} 10. Qxd2 {[%clk 0:02:55.6]} 10... Be6 {[%clk 0:02:05.6]} 11. cxd5
{[%clk 0:02:37.2]} 11... Bxd5 {[%clk 0:02:05.3]} 12. e4 {[%clk 0:02:37.2]} 12...
Bc4 {[%clk 0:02:06.1]} 13. Rd1 {[%clk 0:02:37.5]} 13... Nd7 {[%clk 0:02:03.1]}
14. Qc2 {[%clk 0:02:32]} 14... Ba6 {[%clk 0:02:00.6]} 15. Be3 {[%clk 0:02:31.6]}
15... Rc8 {[%clk 0:01:48.1]} 16. Rac1 {[%clk 0:02:32]} 16... Qa5 {[%clk
0:01:41.7]} 17. a3 {[%clk 0:02:25.3]} 17... Rfd8 {[%clk 0:01:05.7]} 18. Nf3
{[%clk 0:02:07.3]} 18... Qh5 {[%clk 0:00:55]} 19. h4 {[%clk 0:02:03.1]} 19... b6
{[%clk 0:00:42.1]} 20. Ng5 {[%clk 0:01:47.6]} 20... Nf6 {[%clk 0:00:20.8]} 21.
Bf3 {[%clk 0:01:44]} 21... Ng4 {[%clk 0:00:21.6]} 22. Qa4 {[%clk 0:01:44.6]}
22... Bb5 {[%clk 0:00:16.5]} 23. Qxa7 {[%clk 0:01:43.8]} 23... h6 {[%clk
0:00:17.6]} 24. Nh3 {[%clk 0:01:14.3]} 24... e5 {[%clk 0:00:13.6]} 25. dxe5
{[%clk 0:01:01.8]} 25... Bxe5 {[%clk 0:00:13.5]} 26. Qxb6 {[%clk 0:00:59.3]}
26... Rxd1+ {[%clk 0:00:10.3]} 27. Rxd1 {[%clk 0:01:01.2]} 27... Bxb2 {[%clk
0:00:11.8]} 28. Rd8+ {[%clk 0:00:57.5]} 28... Rxd8 {[%clk 0:00:12.3]} 29. Qxd8+
{[%clk 0:00:59.4]} 29... Kh7 {[%clk 0:00:13.5]} 30. Nf4 {[%clk 0:01:00.3]} 30...
Qe5 {[%clk 0:00:13.2]} 31. Bxg4 {[%clk 0:01:00.8]} 31... Qxe4 {[%clk 0:00:12.1]}
32. Qd7 {[%clk 0:00:55.5]} 32... Bc4 {[%clk 0:00:12.2]} 33. h5 {[%clk
0:00:52.7]} 33... g5 {[%clk 0:00:13.3]} 34. Bf5+ {[%clk 0:00:53.4]} 1-0

[Event "*** Titled Tuesday Blitz"]
[Site "Chess.com"]
[Date "2020.01.07"]
[Round "6"]
[White "Atakishiyev04"]
[Black "FairChess_on_YouTube"]
[Result "1/2-1/2"]
[WhiteElo "2740"]
[BlackElo "2988"]
[TimeControl "180+2"]
[EndTime "14:22:59 PST"]
[Termination "Game drawn by repetition"]

1. d4 {[%clk 0:03:01.9]} 1... g6 {[%clk 0:02:59.1]} 2. c4 {[%clk 0:03:01.4]}
2... d6 {[%clk 0:02:58.9]} 3. Nc3 {[%clk 0:03:01.6]} 3... e5 {[%clk 0:02:54.1]}
4. Nf3 {[%clk 0:02:55.1]} 4... Nd7 {[%clk 0:02:50.6]} 5. g3 {[%clk 0:02:53.4]}
5... Bg7 {[%clk 0:02:51]} 6. Bg2 {[%clk 0:02:44.7]} 6... Ne7 {[%clk 0:02:51.8]}
7. O-O {[%clk 0:02:44.7]} 7... O-O {[%clk 0:02:52.9]} 8. Bg5 {[%clk 0:02:37.3]}
8... h6 {[%clk 0:02:51]} 9. Be3 {[%clk 0:02:36.7]} 9... Nf5 {[%clk 0:02:50.3]}
10. Qd2 {[%clk 0:02:28.3]} 10... Nxe3 {[%clk 0:02:47.5]} 11. Qxe3 {[%clk
0:02:26.1]} 11... Re8 {[%clk 0:02:47.7]} 12. dxe5 {[%clk 0:02:26.2]} 12... Nxe5
{[%clk 0:02:43.1]} 13. Nxe5 {[%clk 0:02:25.4]} 13... Rxe5 {[%clk 0:02:44.1]} 14.
Qd2 {[%clk 0:02:25.4]} 14... c6 {[%clk 0:02:44.7]} 15. Rad1 {[%clk 0:02:25.5]}
15... Re8 {[%clk 0:02:27.1]} 16. Qxd6 {[%clk 0:02:14.4]} 16... Qxd6 {[%clk
0:02:27.4]} 17. Rxd6 {[%clk 0:02:15.8]} 17... Be6 {[%clk 0:02:28.8]} 18. Rfd1
{[%clk 0:01:35.9]} 18... Be5 {[%clk 0:02:16.2]} 19. R6d2 {[%clk 0:01:32.2]}
19... Bxc4 {[%clk 0:02:16.4]} 20. Ne4 {[%clk 0:01:32.6]} 20... Bxa2 {[%clk
0:02:13]} 21. Nc5 {[%clk 0:01:32.4]} 21... b6 {[%clk 0:01:57.8]} 22. b3 {[%clk
0:01:28.5]} 22... bxc5 {[%clk 0:01:55.6]} 23. Rxa2 {[%clk 0:01:29.6]} 23... Re7
{[%clk 0:01:53.5]} 24. Ra6 {[%clk 0:01:30]} 24... Rb8 {[%clk 0:01:53.1]} 25.
Rxc6 {[%clk 0:01:29.3]} 25... Rxb3 {[%clk 0:01:52.6]} 26. Rxc5 {[%clk
0:01:29.2]} 26... Ra3 {[%clk 0:01:41.1]} 27. e3 {[%clk 0:01:22.8]} 27... a5
{[%clk 0:01:39.7]} 28. Bc6 {[%clk 0:01:16.2]} 28... Kg7 {[%clk 0:01:34.9]} 29.
Kg2 {[%clk 0:01:14.4]} 29... Bf6 {[%clk 0:01:25.1]} 30. h4 {[%clk 0:01:14.1]}
30... Ra7 {[%clk 0:01:25.4]} 31. Rd7 {[%clk 0:01:09.1]} 31... Rxd7 {[%clk
0:01:24]} 32. Bxd7 {[%clk 0:01:11]} 32... Be7 {[%clk 0:01:22.2]} 33. Rc6 {[%clk
0:01:09.2]} 33... Ra2 {[%clk 0:01:18.6]} 34. Ra6 {[%clk 0:01:09.9]} 34... Bb4
{[%clk 0:01:18.3]} 35. Kf1 {[%clk 0:01:06.6]} 35... Ra1+ {[%clk 0:01:18.9]} 36.
Kg2 {[%clk 0:01:06.7]} 36... Ra2 {[%clk 0:01:20.1]} 37. Kf1 {[%clk 0:01:07.8]}
37... Rc2 {[%clk 0:01:20.2]} 38. Bb5 {[%clk 0:01:03.8]} 38... Rc7 {[%clk
0:01:20]} 39. Bd3 {[%clk 0:00:59.7]} 39... h5 {[%clk 0:01:19.4]} 40. Ke2 {[%clk
0:01:00.9]} 40... Kf8 {[%clk 0:01:19.5]} 41. Bb5 {[%clk 0:00:57.6]} 41... Rc2+
{[%clk 0:01:18]} 42. Kf1 {[%clk 0:00:59.1]} 42... Rc7 {[%clk 0:01:15.7]} 43. Ke2
{[%clk 0:00:58.1]} 43... Ke7 {[%clk 0:01:16.7]} 44. Bc6 {[%clk 0:00:57.7]} 44...
Bc3 {[%clk 0:01:14.4]} 45. Bd5 {[%clk 0:00:57.6]} 45... Bb4 {[%clk 0:01:13.7]}
46. Bc6 {[%clk 0:00:57.6]} 46... Kf8 {[%clk 0:01:10.3]} 47. Bb5 {[%clk
0:00:57.1]} 1/2-1/2

[Event "*** Titled Tuesday Blitz"]
[Site "Chess.com"]
[Date "2020.01.07"]
[Round "6"]
[White "Proteuo"]
[Black "boasovietica"]
[Result "1-0"]
[WhiteElo "2344"]
[BlackElo "2472"]
[TimeControl "180+2"]
[EndTime "14:22:59 PST"]
[Termination "Proteuo won by checkmate"]

1. e4 {[%clk 0:03:01.9]} 1... e5 {[%clk 0:03:00.1]} 2. Nf3 {[%clk 0:03:02.4]}
2... Nc6 {[%clk 0:03:01.3]} 3. Bb5 {[%clk 0:03:01.8]} 3... a6 {[%clk 0:03:02]}
4. Ba4 {[%clk 0:03:02.3]} 4... Nf6 {[%clk 0:03:03]} 5. O-O {[%clk 0:03:03.2]}
5... Be7 {[%clk 0:03:03.8]} 6. Re1 {[%clk 0:03:03.6]} 6... b5 {[%clk 0:03:04.2]}
7. Bb3 {[%clk 0:03:04.2]} 7... d6 {[%clk 0:03:05.2]} 8. c3 {[%clk 0:03:02]} 8...
O-O {[%clk 0:03:04.9]} 9. h3 {[%clk 0:03:03.1]} 9... Bb7 {[%clk 0:03:04.7]} 10.
d3 {[%clk 0:03:03.4]} 10... Nd7 {[%clk 0:03:00.1]} 11. Nbd2 {[%clk 0:03:03.3]}
11... Nc5 {[%clk 0:02:59.2]} 12. Bc2 {[%clk 0:03:02.6]} 12... Ne6 {[%clk
0:02:59.7]} 13. Nf1 {[%clk 0:03:02.2]} 13... Ng5 {[%clk 0:02:58.6]} 14. Ng3
{[%clk 0:02:56.3]} 14... Nxf3+ {[%clk 0:02:58.1]} 15. Qxf3 {[%clk 0:02:58.2]}
15... Bg5 {[%clk 0:02:57.3]} 16. Nf5 {[%clk 0:02:50.3]} 16... Bxc1 {[%clk
0:02:56.2]} 17. Raxc1 {[%clk 0:02:52.2]} 17... Qf6 {[%clk 0:02:47.9]} 18. Kh2
{[%clk 0:02:41.6]} 18... Rfe8 {[%clk 0:02:42.9]} 19. Rg1 {[%clk 0:02:28.2]}
19... g6 {[%clk 0:02:30.5]} 20. Nh6+ {[%clk 0:02:10.7]} 20... Kg7 {[%clk
0:02:31.2]} 21. Qxf6+ {[%clk 0:02:08.1]} 21... Kxf6 {[%clk 0:02:31.6]} 22. Ng4+
{[%clk 0:02:09.5]} 22... Kg7 {[%clk 0:02:29.3]} 23. Ne3 {[%clk 0:02:09.6]} 23...
Ne7 {[%clk 0:02:22.2]} 24. g4 {[%clk 0:02:06.5]} 24... d5 {[%clk 0:02:19.8]} 25.
Rcf1 {[%clk 0:02:00.9]} 25... Rad8 {[%clk 0:02:15.8]} 26. f4 {[%clk 0:01:57.3]}
26... dxe4 {[%clk 0:02:14]} 27. dxe4 {[%clk 0:01:48.6]} 27... exf4 {[%clk
0:02:09.7]} 28. Rxf4 {[%clk 0:01:47]} 28... Rd2+ {[%clk 0:02:09]} 29. Kg3 {[%clk
0:01:38.2]} 29... Nc6 {[%clk 0:01:53.9]} 30. Bb3 {[%clk 0:01:28.5]} 30... Ne5
{[%clk 0:01:43]} 31. Rgf1 {[%clk 0:01:26.6]} 31... Rd3 {[%clk 0:01:31.3]} 32.
Kf2 {[%clk 0:01:05.4]} 32... Re7 {[%clk 0:01:05.6]} 33. Ke2 {[%clk 0:00:59.9]}
33... Rd6 {[%clk 0:01:05.2]} 34. g5 {[%clk 0:00:55.1]} 34... Nd3 {[%clk
0:01:00.5]} 35. Rxf7+ {[%clk 0:00:54.2]} 35... Rxf7 {[%clk 0:00:53]} 36. Rxf7+
{[%clk 0:00:53.6]} 36... Kh8 {[%clk 0:00:50]} 37. Rf8+ {[%clk 0:00:53.9]} 37...
Kg7 {[%clk 0:00:51.1]} 38. Rg8# {[%clk 0:00:54.7]} 1-0